fUSD/lending_fUSD_20240508
["ID","MTS","AMOUNT","RATE_DAILY","PERIOD"]
[326632967,1715170243445,-509.88238678,0.00027397,2]
[326632969,1715170243454,-500.0,0.00027397,2]
[326632971,1715170243464,-507.62740802,0.00027397,2]
[326632973,1715170243474,-500.0,0.00027397,2]
[326632975,1715170243483,-500.0,0.00027397,2]
[326632977,1715170243493,-500.0,0.00027397,2]
[326632979,1715170243504,-500.0,0.00027397,2]
[326632981,1715170243514,-510.31005744,0.00027397,2]
[326633000,1715170243681,-633.23,0.00027397,2]
[326633003,1715170243697,-544.90550395,0.00027397,2]
[326633005,1715170243707,-500.0,0.00027397,2]
[326633007,1715170243716,-500.0,0.00027397,2]
[326633009,1715170243726,-515.57395286,0.00027397,2]
[326633011,1715170243735,-507.34759568,0.00027397,2]
[326633013,1715170243745,-505.54448087,0.00027397,2]
[326633015,1715170243754,-511.91519903,0.00027397,2]
[326633017,1715170243764,-500.0,0.00027397,2]
[326633019,1715170243775,-500.0,0.00027397,2]
[326633021,1715170243785,-500.0,0.00027397,2]
[326633023,1715170243794,-500.0,0.00027397,2]
[326633025,1715170243803,-500.0,0.00027397,2]
[326633027,1715170243813,-529.62,0.00027397,2]
[326633029,1715170243822,-555.14823391,0.00027397,2]
[326633031,1715170243831,-500.0,0.00027397,2]
[326633033,1715170243840,-509.52156158,0.00027397,2]
[326633035,1715170243850,-500.0,0.00027397,2]
[326633037,1715170243859,-500.0,0.00027397,2]
[326633039,1715170243868,-500.0,0.00027397,2]
[326633041,1715170243878,-505.89739427,0.00027397,2]
[326633043,1715170243887,-504.79872055,0.00027397,2]
[326633045,1715170243896,-500.0,0.00027397,2]
[326633047,1715170243905,-500.0,0.00027397,2]
[326633049,1715170243914,-574.64357588,0.00027397,2]
[326633051,1715170243923,-500.0,0.00027397,2]
[326633053,1715170243933,-500.0,0.00027397,2]
[326633055,1715170243941,-506.44671233,0.00027397,2]
[326633056,1715170243950,-503.03,0.00027397,2]
[326633058,1715170243959,-500.0,0.00027397,2]
[326633061,1715170243969,-500.0,0.00027397,2]
[326633062,1715170243978,-487.2666658,0.00027397,2]
[326633064,1715170243988,-500.0,0.00027397,2]
[326633066,1715170243997,-506.19637105,0.00027397,2]
[326633068,1715170244007,-500.0,0.00027397,2]
[326633070,1715170244017,-500.0,0.00027397,2]
[326633072,1715170244027,-506.59563953,0.00027397,2]
[326633074,1715170244037,-500.0,0.00027397,2]
[326633076,1715170244046,-500.0,0.00027397,2]
[326633078,1715170244056,-500.0,0.00027397,2]
[326633080,1715170244065,-500.0,0.00027397,2]
[326633082,1715170244074,-500.0,0.00027397,2]
[326633084,1715170244083,-507.99148528,0.00027397,2]
[326633086,1715170244093,-590.79,0.00027397,2]
[326633088,1715170244103,-522.09681327,0.00027397,2]
[326633090,1715170244113,-500.0,0.00027397,2]
[326633092,1715170244130,-500.0,0.00027397,2]
[326633094,1715170244140,-500.0,0.00027397,2]
[326633096,1715170244150,-500.0,0.00027397,2]
[326633098,1715170244161,-540.88,0.00027397,2]
[326633100,1715170244170,-500.0,0.00027397,2]
[326633102,1715170244180,-500.0,0.00027397,2]
[326633104,1715170244190,-500.0,0.00027397,2]
[326633107,1715170244200,-500.74234951,0.00027397,2]
[326633108,1715170244210,-505.53022395,0.00027397,2]
[326633111,1715170244220,-508.65638445,0.00027397,2]
[326633113,1715170244230,-500.0,0.00027397,2]
[326633115,1715170244240,-500.0,0.00027397,2]
[326633117,1715170244250,-500.77843045,0.00027397,2]
[326633119,1715170244259,-223.40091723,0.00027397,2]
[326633121,1715170244269,-500.0,0.00027397,2]
[326633123,1715170244280,-233.08640175,0.00027397,2]
[326633125,1715170244289,-500.0,0.00027397,2]
[326633127,1715170244299,-500.0,0.00027397,2]
[326633130,1715170244316,-500.0,0.00027397,2]
[326633132,1715170244325,-504.70879092,0.00027397,2]
[326633133,1715170244335,-500.0,0.00027397,2]
[326633135,1715170244344,-500.0,0.00027397,2]
[326633137,1715170244354,-500.0,0.00027397,2]
[326633139,1715170244364,-500.0,0.00027397,2]
[326633141,1715170244373,-500.0,0.00027397,2]
[326633144,1715170244384,-507.24742551,0.00027397,2]
[326633146,1715170244394,-505.30393362,0.00027397,2]
[326633148,1715170244403,-500.0,0.00027397,2]
[326633150,1715170244413,-500.0,0.00027397,2]
[326633152,1715170244424,-507.2973527,0.00027397,2]
[326633154,1715170244435,-507.85504308,0.00027397,2]
[326633155,1715170244444,-511.25633768,0.00027397,2]
[326633158,1715170244453,-500.0,0.00027397,2]
[326633160,1715170244463,-500.0,0.00027397,2]
[326633162,1715170244473,-500.0,0.00027397,2]
[326633163,1715170244482,-500.0,0.00027397,2]
[326633165,1715170244491,-506.74881343,0.00027397,2]
[326633167,1715170244501,-505.60790086,0.00027397,2]
[326633169,1715170244512,-500.0,0.00027397,2]
[326633172,1715170244523,-500.0,0.00027397,2]
[326633173,1715170244532,-500.0,0.00027397,2]
[326633175,1715170244541,-500.0,0.00027397,2]
[326633177,1715170244551,-578.71,0.00027397,2]
[326633179,1715170244561,-500.0,0.00027397,2]
[326633181,1715170244570,-508.47337725,0.00027397,2]
[326633183,1715170244579,-500.0,0.00027397,2]
[326633185,1715170244588,-500.0,0.00027397,2]
[326633188,1715170244598,-642.42383876,0.00027397,2]
[326633189,1715170244608,-509.94409406,0.00027397,2]
[326633191,1715170244619,-631.35,0.00027397,2]
[326633193,1715170244628,-500.0,0.00027397,2]
[326633195,1715170244637,-500.0,0.00027397,2]
[326633197,1715170244646,-500.0,0.00027397,2]
[326633199,1715170244656,-500.0,0.00027397,2]
[326633201,1715170244665,-500.0,0.00027397,2]
[326633203,1715170244674,-475.84796826,0.00027397,2]
[326633205,1715170244683,-500.0,0.00027397,2]
[326633207,1715170244692,-506.3701457,0.00027397,2]
[326633209,1715170244702,-515.12548069,0.00027397,2]
[326633211,1715170244716,-500.0,0.00027397,2]
[326633213,1715170244727,-500.0,0.00027397,2]
[326633215,1715170244736,-500.0,0.00027397,2]
[326633217,1715170244746,-510.83801179,0.00027397,2]
[326633219,1715170244755,-500.0,0.00027397,2]
[326633221,1715170244765,-500.0,0.00027397,2]
[326633223,1715170244775,-510.33569903,0.00027397,2]
[326633225,1715170244784,-500.0,0.00027397,2]
[326633227,1715170244793,-502.25489581,0.00027397,2]
[326633228,1715170244803,-500.0,0.00027397,2]
[326633230,1715170244812,-569.92,0.00027397,2]
[326633232,1715170244822,-347.67695335,0.00027397,2]
[326633234,1715170244831,-500.0,0.00027397,2]
[326633236,1715170244840,-500.0,0.00027397,2]
[326633238,1715170244849,-506.83558032,0.00027397,2]
[326633240,1715170244859,-507.06301529,0.00027397,2]
[326633242,1715170244869,-509.71078842,0.00027397,2]
[326633244,1715170244878,-500.0,0.00027397,2]
[326633246,1715170244888,-500.0,0.00027397,2]
[326633248,1715170244897,-508.96971556,0.00027397,2]
[326633250,1715170244906,-500.0,0.00027397,2]
[326633252,1715170244915,-500.0,0.00027397,2]
[326633254,1715170244924,-508.93793187,0.00027397,2]
[326633256,1715170244934,-500.0,0.00027397,2]
[326633258,1715170244943,-500.0,0.00027397,2]
[326633260,1715170244952,-500.0,0.00027397,2]
[326633262,1715170244962,-500.0,0.00027397,2]
[326633264,1715170244971,-500.0,0.00027397,2]
[326633265,1715170244981,-506.25094242,0.00027397,2]
[326633268,1715170244991,-511.41189106,0.00027397,2]
[326633269,1715170245000,-500.0,0.00027397,2]
[326633271,1715170245010,-150.0,0.00027397,2]
[326633273,1715170245020,-570.88807256,0.00027397,2]
[326633275,1715170245030,-500.0,0.00027397,2]
[326633277,1715170245040,-500.0,0.00027397,2]
[326633279,1715170245050,-513.11542471,0.00027397,2]
[326633281,1715170245059,-500.0,0.00027397,2]
[326633283,1715170245068,-500.0,0.00027397,2]
[326633285,1715170245077,-512.38374939,0.00027397,2]
[326633287,1715170245086,-500.0,0.00027397,2]
[326633289,1715170245095,-512.78548478,0.00027397,2]
[326633291,1715170245104,-506.89197119,0.00027397,2]
[326633293,1715170245114,-500.0,0.00027397,2]
[326633295,1715170245124,-500.0,0.00027397,2]
[326633297,1715170245134,-500.0,0.00027397,2]
[326633299,1715170245144,-500.0,0.00027397,2]
[326633301,1715170245153,-509.36646109,0.00027397,2]
[326633303,1715170245163,-500.0,0.00027397,2]
[326633305,1715170245172,-500.0,0.00027397,2]
[326633307,1715170245181,-500.0,0.00027397,2]
[326633309,1715170245191,-503.52764972,0.00027397,2]
[326633311,1715170245200,-500.0,0.00027397,2]
[326633313,1715170245210,-500.0,0.00027397,2]
[326633315,1715170245219,-302.56122055,0.00027397,2]
[326633317,1715170245228,-568.81,0.00027397,2]
[326633319,1715170245237,-507.30954632,0.00027397,2]
[326633321,1715170245247,-500.0,0.00027397,2]
[326633323,1715170245258,-498.781722,0.00027397,2]
[326633325,1715170245267,-500.0,0.00027397,2]
[326633327,1715170245277,-507.99193631,0.00027397,2]
[326633329,1715170245286,-1421.74,0.00027397,2]
[326633331,1715170245295,-500.0,0.00027397,2]
[326633333,1715170245305,-500.0,0.00027397,2]
[326633335,1715170245315,-500.0,0.00027397,2]
[326633337,1715170245324,-510.23004738,0.00027397,2]
[326633339,1715170245333,-500.0,0.00027397,2]
[326633341,1715170245353,-500.0,0.00027397,2]
[326633343,1715170245365,-500.0,0.00027397,2]
[326633345,1715170245375,-510.17511617,0.00027397,2]
[326633347,1715170245384,-504.5285706,0.00027397,2]
[326633349,1715170245392,-500.0,0.00027397,2]
[326633351,1715170245402,-509.7942912,0.00027397,2]
[326633353,1715170245411,-500.0,0.00027397,2]
[326633355,1715170245421,-503.32639491,0.00027397,2]
[326633357,1715170245435,-503.71045259,0.00027397,2]
[326633359,1715170245444,-500.0,0.00027397,2]
[326633361,1715170245453,-508.34249367,0.00027397,2]
[326633363,1715170245462,-500.0,0.00027397,2]
[326633365,1715170245473,-500.0,0.00027397,2]
[326633367,1715170245482,-510.34239478,0.00027397,2]
[326633369,1715170245492,-500.0,0.00027397,2]
[326633371,1715170245503,-515.19379206,0.00027397,2]
[326633373,1715170245512,-507.46514443,0.00027397,2]
[326633375,1715170245522,-500.0,0.00027397,2]
[326633377,1715170245531,-561.41638243,0.00027397,2]
[326633379,1715170245540,-505.46,0.00027397,2]
[326633381,1715170245550,-509.26182734,0.00027397,2]
[326633383,1715170245559,-386.13953057,0.00027397,2]
[326633385,1715170245568,-500.0,0.00027397,2]
[326633387,1715170245577,-500.0,0.00027397,2]
[326633389,1715170245586,-506.76645846,0.00027397,2]
[326633391,1715170245596,-500.0,0.00027397,2]
[326633393,1715170245606,-500.0,0.00027397,2]
[326633395,1715170245616,-500.0,0.00027397,2]
[326633396,1715170245626,-500.0,0.00027397,2]
[326633397,1715170245636,-508.17912752,0.00027397,2]
[326633398,1715170245645,-500.0,0.00027397,2]
[326633399,1715170245655,-500.0,0.00027397,2]
[326633400,1715170245664,-500.0,0.00027397,2]
[326633401,1715170245673,-500.0,0.00027397,2]
[326633402,1715170245683,-500.0,0.00027397,2]
[326633403,1715170245693,-510.31474863,0.00027397,2]
[326633404,1715170245703,-507.059648,0.00027397,2]
[326633405,1715170245712,-156.49,0.00027397,2]
[326633406,1715170245722,-500.0,0.00027397,2]
[326633407,1715170245731,-500.0,0.00027397,2]
[326633408,1715170245740,-500.0,0.00027397,2]
[326633410,1715170245750,-500.0,0.00027397,2]
[326633412,1715170245760,-500.0,0.00027397,2]
[326633414,1715170245770,-500.0,0.00027397,2]
[326633416,1715170245780,-500.0,0.00027397,2]
[326633418,1715170245789,-506.46800241,0.00027397,2]
[326633419,1715170245799,-435.73890451,0.00027397,2]
[326633421,1715170245808,-500.0,0.00027397,2]
[326633423,1715170245818,-500.0,0.00027397,2]
[326633425,1715170245827,-500.0,0.00027397,2]
[326633427,1715170245836,-508.40968542,0.00027397,2]
[326633429,1715170245846,-614.81441906,0.00027397,2]
[326633431,1715170245855,-500.0,0.00027397,2]
[326633433,1715170245866,-522.41954101,0.00027397,2]
[326633436,1715170245876,-500.0,0.00027397,2]
[326633438,1715170245887,-511.57883141,0.00027397,2]
[326633440,1715170245896,-506.00188419,0.00027397,2]
[326633441,1715170245906,-506.40052868,0.00027397,2]
[326633443,1715170245915,-520.64993298,0.00027397,2]
[326633446,1715170245925,-510.94095192,0.00027397,2]
[326633448,1715170245935,-500.0,0.00027397,2]
[326633449,1715170245944,-500.0,0.00027397,2]
[326633452,1715170245954,-534.86,0.00027397,2]
[326633454,1715170245964,-500.0,0.00027397,2]
[326633456,1715170245973,-513.96607744,0.00027397,2]
[326633458,1715170245982,-504.82433026,0.00027397,2]
[326633459,1715170245997,-580.01,0.00027397,2]
[326633462,1715170246016,-500.0,0.00027397,2]
[326633464,1715170246026,-507.40198844,0.00027397,2]
[326633466,1715170246035,-545.12232147,0.00027397,2]
[326633467,1715170246045,-500.0,0.00027397,2]
[326633469,1715170246054,-500.0,0.00027397,2]
[326633471,1715170246064,-508.11237577,0.00027397,2]
[326633473,1715170246073,-514.90366464,0.00027397,2]
[326633476,1715170246083,-590.69713295,0.00027397,2]
[326633478,1715170246092,-500.0,0.00027397,2]
[326633480,1715170246101,-500.0,0.00027397,2]
[326633482,1715170246112,-516.14060546,0.00027397,2]
[326633484,1715170246122,-513.40384643,0.00027397,2]
[326633486,1715170246131,-500.0,0.00027397,2]
[326633488,1715170246141,-500.0,0.00027397,2]
[326633490,1715170246150,-509.06440676,0.00027397,2]
[326633492,1715170246159,-508.94984873,0.00027397,2]
[326633494,1715170246168,-508.04021953,0.00027397,2]
[326633496,1715170246178,-508.85183527,0.00027397,2]
[326633498,1715170246187,-513.77559522,0.00027397,2]
[326633500,1715170246197,-305.3780686,0.00027397,2]
[326633502,1715170246206,-562.26,0.00027397,2]
[326633504,1715170246216,-502.07438749,0.00027397,2]
[326633506,1715170246225,-513.08314342,0.00027397,2]
[326633508,1715170246235,-500.0,0.00027397,2]
[326633510,1715170246244,-508.29317351,0.00027397,2]
[326633512,1715170246254,-509.56161012,0.00027397,2]
[326633514,1715170246263,-626.34390566,0.00027397,2]
[326633516,1715170246273,-500.0,0.00027397,2]
[326633518,1715170246282,-500.0,0.00027397,2]
[326633520,1715170246292,-500.0,0.00027397,2]
[326633522,1715170246301,-500.0,0.00027397,2]
[326633524,1715170246310,-510.93580299,0.00027397,2]
[326633526,1715170246320,-512.00010169,0.00027397,2]
[326633528,1715170246329,-500.0,0.00027397,2]
[326633530,1715170246338,-513.5299219,0.00027397,2]
[326633532,1715170246348,-500.0,0.00027397,2]
[326633534,1715170246357,-500.0,0.00027397,2]
[326633535,1715170246368,-500.0,0.00027397,2]
[326633537,1715170246376,-500.0,0.00027397,2]
[326633539,1715170246386,-500.0,0.00027397,2]
[326633541,1715170246395,-523.6430482,0.00027397,2]
[326633544,1715170246405,-504.73367251,0.00027397,2]
[326633545,1715170246414,-521.38,0.00027397,2]
[326633548,1715170246424,-513.33160172,0.00027397,2]
[326633550,1715170246436,-508.378844,0.00027397,2]
[326633551,1715170246445,-525.90894287,0.00027397,2]
[326633553,1715170246455,-500.0,0.00027397,2]
[326633555,1715170246464,-500.0,0.00027397,2]
[326633557,1715170246475,-163.44015779,0.00027397,2]
[326633559,1715170246484,-509.40181456,0.00027397,2]
[326633561,1715170246494,-500.0,0.00027397,2]
[326633563,1715170246504,-555.37328641,0.00027397,2]
[326633566,1715170246517,-500.0,0.00027397,2]
[326633568,1715170246527,-500.0,0.00027397,2]
[326633570,1715170246536,-500.0,0.00027397,2]
[326633572,1715170246546,-508.70388523,0.00027397,2]
[326633574,1715170246555,-500.0,0.00027397,2]
[326633576,1715170246565,-500.0,0.00027397,2]
[326633589,1715170246701,-500.0,0.00027397,2]
[326633591,1715170246712,-500.0,0.00027397,2]
[326633594,1715170246721,-510.3706647,0.00027397,2]
[326633596,1715170246731,-500.0,0.00027397,2]
[326633598,1715170246741,-500.0,0.00027397,2]
[326633600,1715170246752,-500.0,0.00027397,2]
[326633602,1715170246761,-500.0,0.00027397,2]
[326633604,1715170246771,-500.0,0.00027397,2]
[326633606,1715170246782,-511.93596271,0.00027397,2]
[326633608,1715170246791,-500.0,0.00027397,2]
[326633610,1715170246801,-500.0,0.00027397,2]
[326633612,1715170246810,-508.25140265,0.00027397,2]
[326633614,1715170246819,-500.0,0.00027397,2]
[326633616,1715170246829,-500.0,0.00027397,2]
[326633618,1715170246838,-500.0,0.00027397,2]
[326633620,1715170246848,-505.32608045,0.00027397,2]
[326633622,1715170246857,-506.07277175,0.00027397,2]
[326633624,1715170246867,-500.0,0.00027397,2]
[326633626,1715170246876,-500.0,0.00027397,2]
[326633628,1715170246886,-470.38149612,0.00027397,2]
[326633630,1715170246895,-500.0,0.00027397,2]
[326633634,1715170246904,-506.40993576,0.00027397,2]
[326633636,1715170246914,-500.0,0.00027397,2]
[326633638,1715170246923,-509.41375737,0.00027397,2]
[326633640,1715170246932,-500.0,0.00027397,2]
[326633642,1715170246942,-541.58,0.00027397,2]
[326633644,1715170246951,-500.0,0.00027397,2]
[326633646,1715170246961,-510.74553577,0.00027397,2]
[326633648,1715170246970,-500.0,0.00027397,2]
[326633650,1715170246979,-500.0,0.00027397,2]
[326633652,1715170246988,-500.0,0.00027397,2]
[326633654,1715170246998,-506.27741455,0.00027397,2]
[326633656,1715170247007,-500.0,0.00027397,2]
[326633658,1715170247016,-228.10379924,0.00027397,2]
[326633660,1715170247026,-500.0,0.00027397,2]
[326633662,1715170247035,-504.56388397,0.00027397,2]
[326633664,1715170247044,-500.0,0.00027397,2]
[326633666,1715170247053,-506.69814023,0.00027397,2]
[326633668,1715170247062,-500.46,0.00027397,2]
[326633670,1715170247072,-500.0,0.00027397,2]
[326633672,1715170247081,-505.62071718,0.00027397,2]
[326633674,1715170247091,-500.0,0.00027397,2]
[326633676,1715170247100,-499.99695903,0.00027397,2]
[326633678,1715170247110,-500.0,0.00027397,2]
[326633680,1715170247119,-507.46957548,0.00027397,2]
[326633682,1715170247128,-500.0,0.00027397,2]
[326633684,1715170247137,-500.0,0.00027397,2]
[326633686,1715170247147,-505.63132901,0.00027397,2]
[326633688,1715170247157,-508.59781536,0.00027397,2]
[326633690,1715170247166,-500.0,0.00027397,2]
[326633692,1715170247176,-551.04,0.00027397,2]
[326633694,1715170247186,-500.0,0.00027397,2]
[326633696,1715170247195,-500.0,0.00027397,2]
[326633698,1715170247204,-507.23984162,0.00027397,2]
[326633700,1715170247213,-500.0,0.00027397,2]
[326633702,1715170247222,-585.76,0.00027397,2]
[326633704,1715170247266,-505.89938768,0.00027397,2]
[326633706,1715170247287,-500.0,0.00027397,2]
[326633708,1715170247296,-500.0,0.00027397,2]
[326633710,1715170247305,-512.80725009,0.00027397,2]
[326633712,1715170247314,-500.0,0.00027397,2]
[326633714,1715170247324,-505.19939325,0.00027397,2]
[326633716,1715170247333,-500.0,0.00027397,2]
[326633718,1715170247342,-500.0,0.00027397,2]
[326633720,1715170247351,-517.04538269,0.00027397,2]
[326633722,1715170247361,-500.0,0.00027397,2]
[326633724,1715170247370,-505.92877088,0.00027397,2]
[326633726,1715170247379,-504.6083556,0.00027397,2]
[326633728,1715170247389,-500.0,0.00027397,2]
[326633730,1715170247398,-500.0,0.00027397,2]
[326633732,1715170247407,-500.0,0.00027397,2]
[326633734,1715170247417,-506.62515976,0.00027397,2]
[326633736,1715170247430,-508.90002872,0.00027397,2]
[326633738,1715170247439,-523.92821726,0.00027397,2]
[326633740,1715170247448,-500.0,0.00027397,2]
[326633742,1715170247458,-507.87109768,0.00027397,2]
[326633744,1715170247468,-503.48868493,0.00027397,2]
[326633746,1715170247477,-374.71898102,0.00027397,2]
[326633748,1715170247486,-291.89663395,0.00027397,2]
[326633750,1715170247495,-500.0,0.00027397,2]
[326633752,1715170247507,-519.51670026,0.00027397,2]
[326633754,1715170247517,-500.0,0.00027397,2]
[326633756,1715170247526,-500.0,0.00027397,2]
[326633758,1715170247535,-504.16676764,0.00027397,2]
[326633760,1715170247544,-500.0,0.00027397,2]
[326633762,1715170247554,-500.0,0.00027397,2]
[326633763,1715170247562,-500.0,0.00027397,2]
[326633764,1715170247572,-500.0,0.00027397,2]
[326633765,1715170247581,-500.0,0.00027397,2]
[326633766,1715170247590,-500.0,0.00027397,2]
[326633767,1715170247600,-524.86943509,0.00027397,2]
[326633768,1715170247610,-505.19784932,0.00027397,2]
[326633769,1715170247619,-502.34402269,0.00027397,2]
[326633770,1715170247628,-500.0,0.00027397,2]
[326633771,1715170247637,-500.0,0.00027397,2]
[326633772,1715170247646,-500.0,0.00027397,2]
[326633774,1715170247655,-510.00491997,0.00027397,2]
[326633775,1715170247664,-510.37898813,0.00027397,2]
[326633776,1715170247673,-514.26297764,0.00027397,2]
[326633777,1715170247682,-505.58885328,0.00027397,2]
[326633778,1715170247691,-989.94,0.00027397,2]
[326633779,1715170247701,-500.0,0.00027397,2]
[326633780,1715170247710,-500.0,0.00027397,2]
[326633781,1715170247719,-500.0,0.00027397,2]
[326633782,1715170247729,-506.11609535,0.00027397,2]
[326633783,1715170247738,-513.31162284,0.00027397,2]
[326633784,1715170247747,-500.0,0.00027397,2]
[326633785,1715170247756,-319.41932654,0.00027397,2]
[326633786,1715170247766,-500.0,0.00027397,2]
[326633787,1715170247776,-500.0,0.00027397,2]
[326633788,1715170247785,-508.63645731,0.00027397,2]
[326633789,1715170247794,-500.0,0.00027397,2]
[326633790,1715170247805,-509.40416595,0.00027397,2]
[326633791,1715170247815,-511.85438629,0.00027397,2]
[326633792,1715170247825,-500.0,0.00027397,2]
[326633793,1715170247834,-500.0,0.00027397,2]
[326633794,1715170247844,-505.95627173,0.00027397,2]
[326633795,1715170247853,-510.83193277,0.00027397,2]
[326633796,1715170247863,-500.0,0.00027397,2]
[326633797,1715170247872,-500.0,0.00027397,2]
[326633798,1715170247881,-500.0,0.00027397,2]
[326633799,1715170247891,-538.87,0.00027397,2]
[326633800,1715170247900,-500.0,0.00027397,2]
[326633801,1715170247909,-500.0,0.00027397,2]
[326633802,1715170247919,-508.68188648,0.00027397,2]
[326633803,1715170247928,-509.28631544,0.00027397,2]
[326633804,1715170247937,-500.0,0.00027397,2]
[326633805,1715170247946,-506.49271238,0.00027397,2]
[326633806,1715170247956,-500.0,0.00027397,2]
[326633807,1715170247965,-505.70035671,0.00027397,2]
[326633808,1715170247974,-500.0,0.00027397,2]
[326633809,1715170247983,-508.76877739,0.00027397,2]
[326633810,1715170247993,-6118.43,0.00027397,2]
[326633811,1715170248002,-500.0,0.00027397,2]
[326633812,1715170248012,-500.0,0.00027397,2]
[326633813,1715170248021,-500.0,0.00027397,2]
[326633814,1715170248030,-512.76532336,0.00027397,2]
[326633815,1715170248039,-513.23609914,0.00027397,2]
[326633816,1715170248049,-500.0,0.00027397,2]
[326633817,1715170248058,-570.87524075,0.00027397,2]
[326633818,1715170248067,-500.0,0.00027397,2]
[326633819,1715170248077,-504.59323681,0.00027397,2]
[326633820,1715170248086,-277.57539747,0.00027397,2]
[326633821,1715170248095,-500.0,0.00027397,2]
[326633822,1715170248105,-505.5306077,0.00027397,2]
[326633823,1715170248115,-500.0,0.00027397,2]
[326633824,1715170248125,-500.0,0.00027397,2]
[326633825,1715170248135,-500.0,0.00027397,2]
[326633826,1715170248144,-513.05,0.00027397,2]
[326633827,1715170248153,-500.0,0.00027397,2]
[326633828,1715170248162,-500.0,0.00027397,2]
[326633829,1715170248172,-500.0,0.00027397,2]
[326633830,1715170248182,-506.98284098,0.00027397,2]
[326633831,1715170248191,-506.4424433,0.00027397,2]
[326633832,1715170248200,-500.0,0.00027397,2]
[326633833,1715170248210,-500.0,0.00027397,2]
[326633834,1715170248219,-504.91054794,0.00027397,2]
[326633835,1715170248228,-500.0,0.00027397,2]
[326633836,1715170248237,-500.0,0.00027397,2]
[326633837,1715170248247,-500.0,0.00027397,2]
[326633838,1715170248256,-500.0,0.00027397,2]
[326633839,1715170248265,-502.11945562,0.00027397,2]
[326633840,1715170248275,-508.01993916,0.00027397,2]
[326633841,1715170248285,-2693.3,0.00027397,2]
[326633842,1715170248294,-550.0,0.00027397,2]
[326633843,1715170248303,-507.67348699,0.00027397,2]
[326633844,1715170248313,-505.20908845,0.00027397,2]
[326633845,1715170248322,-512.33699749,0.00027397,2]
[326633846,1715170248331,-500.0,0.00027397,2]
[326633847,1715170248340,-500.0,0.00027397,2]
[326633848,1715170248350,-500.0,0.00027397,2]
[326633849,1715170248359,-507.32282065,0.00027397,2]
[326633850,1715170248369,-507.67248056,0.00027397,2]
[326633851,1715170248378,-507.48552153,0.00027397,2]
[326633852,1715170248391,-500.0,0.00027397,2]
[326633853,1715170248400,-500.0,0.00027397,2]
[326633854,1715170248409,-506.18597472,0.00027397,2]
[326633855,1715170248419,-500.0,0.00027397,2]
[326633856,1715170248433,-507.94279656,0.00027397,2]
[326633857,1715170248442,-511.8851275,0.00027397,2]
[326633858,1715170248451,-500.0,0.00027397,2]
[326633859,1715170248461,-500.0,0.00027397,2]
[326633860,1715170248471,-864.89,0.00027397,2]
[326633861,1715170248480,-500.0,0.00027397,2]
[326633862,1715170248489,-500.0,0.00027397,2]
[326633863,1715170248498,-500.0,0.00027397,2]
[326633864,1715170248511,-514.4740542,0.00027397,2]
[326633865,1715170248520,-500.0,0.00027397,2]
[326633866,1715170248530,-536.49041607,0.00027397,2]
[326633867,1715170248539,-500.0,0.00027397,2]
[326633868,1715170248548,-509.03512753,0.00027397,2]
[326633869,1715170248557,-507.67502685,0.00027397,2]
[326633870,1715170248567,-500.0,0.00027397,2]
[326633871,1715170248576,-500.0,0.00027397,2]
[326633872,1715170248585,-500.0,0.00027397,2]
[326633873,1715170248594,-500.0,0.00027397,2]